bitfinex/quotes_ETHUSD_20240825
["timestamp","ask_amount","ask_price","bid_price","bid_amount"]
[1724615456378,2.3198,2771.2,2770.8,3.60897]
[1724615458450,2.3198,2771.2,2770.5,1.26525823]
[1724615458451,2.4407,2770.9,2770.5,3.60944]
[1724615458650,2.4407,2770.9,2770.4,3.60956]
[1724615458850,2.4407,2770.9,2770.3,3.6096]
[1724615458851,3.60893,2770.9,2770.3,3.6096]
[1724615459171,3.6092,2770.7,2770.1,3.60989]
[1724615459379,2.4407,2770.6,2770.2,3.60981]
[1724615459577,2.4407,2770.6,2769.9,3.61013]
[1724615459578,4.87470823,2770.5,2769.9,3.61013]
[1724615459747,2.4407,2770.4,2770.1,3.60997]
[1724615471882,2.4407,2770.4,2770.1,4.87522823]
[1724615472077,2.4407,2770.4,2770.3,3.60971]
[1724615476250,2.4407,2770.4,2770.1,4.87511823]
[1724615476490,2.4407,2770.4,2770.1,3.60986]
[1724615478057,2.4407,2770.4,2770.1,5.72364605]
[1724615478563,2.4407,2770.4,2770.1,9.33354605]
[1724615478964,2.4407,2770.4,2770.1,5.72364605]
[1724615480192,2.4407,2770.4,2770.1,4.87511823]
[1724615483894,2.4407,2770.4,2770.2,3.60983]
[1724615484804,2.4407,2770.4,2770.1,3.60986]
[1724615485121,2.3928,2770.3,2769.9,3.61016]
[1724615485327,2.3928,2770.3,2769.7,3.61039]
[1724615485328,2.3928,2770.1,2769.7,3.61039]
[1724615485695,2.3928,2770.1,2769.5,3.61066]
[1724615486321,2.3928,2770.1,2769.6,3.61055]
[1724615488407,4.87499823,2770.3,2769.5,3.61066]
[1724615488408,2.3928,2769.9,2769.5,3.61066]
[1724615490210,2.3928,2769.9,2769.5,8.07002182]
[1724615496429,2.3928,2769.9,2769.5,7.22133]
[1724615499335,2.3928,2769.9,2769.5,3.61066]
[1724615499659,2.3928,2769.9,2769.5,7.22132]
[1724615501432,2.3928,2769.9,2769.5,7.22133]
[1724615502139,2.3928,2769.9,2769.5,3.61066]
[1724615506442,2.3928,2769.9,2769.5,4.45934782]
[1724615507140,2.3928,2769.9,2769.5,8.07002782]
[1724615507509,2.3928,2769.9,2769.5,4.45934782]
[1724615507819,2.3928,2769.9,2769.5,7.22135]
[1724615508036,2.3928,2769.9,2769.5,3.61066]
[1724615511264,2.3928,2769.9,2769.6,3.61062]
[1724615512449,2.3928,2769.9,2769.7,3.61048]
[1724615513184,2.3928,2769.9,2769.5,8.48655823]
[1724615513790,2.3928,2769.9,2769.6,3.61062]
[1724615522080,2.3928,2769.9,2769.7,3.61037]
[1724615522288,2.3928,2769.9,2769.7,4.87562823]
[1724615522495,2.3928,2769.9,2769.8,3.61036]
[1724615522697,7.45,2770.2,2769.9,3.61022]
[1724615522901,7.45,2770.2,2769.9,3.61014]
[1724615522902,9.8033,2770.2,2769.9,3.61014]
[1724615523105,9.8033,2770.2,2770.1,3.60997]
[1724615523287,2.3533,2770.2,2770.1,3.60997]
[1724615525312,2.3533,2770.2,2769.9,9.33409905]
[1724615525478,2.3533,2770.2,2769.9,3.61012]
[1724615526912,2.3533,2770.2,2769.9,7.22028]
[1724615527123,2.3533,2770.2,2770.0,3.61005]
[1724615532232,2.3533,2770.2,2770.1,3.60997]
[1724615553212,2.3533,2770.2,2770.1,3.60997]
[1724615556857,2.3389,2770.9,2770.6,3.60919]
[1724615563795,2.3389,2770.9,2770.8,3.60906]
[1724615563995,2.3389,2770.9,2770.6,7.21843]
[1724615564575,2.3389,2770.9,2770.7,3.60916]
[1724615581200,2.3389,2770.9,2770.8,3.60906]
[1724615587089,2.3389,2770.9,2770.6,3.60919]
[1724615588166,2.3389,2770.9,2770.6,7.21844]
[1724615588387,2.3389,2770.9,2770.6,3.60919]
[1724615589304,2.3389,2770.9,2770.6,7.21844]
[1724615589502,2.3389,2770.9,2770.7,3.60917]
[1724615603308,2.3389,2770.9,2770.6,3.60919]
[1724615603998,2.3952,2770.7,2770.2,3.60976]
[1724615604533,2.3952,2770.7,2770.2,7.21951]
[1724615604707,2.3952,2770.7,2770.2,3.60975]
[1724615605312,2.3952,2770.7,2770.3,3.6097]
[1724615608947,2.76133159,2770.7,2770.1,3.60995]
[1724615609149,3.64025823,2770.6,2770.1,3.60995]
[1724615609449,2.375,2770.5,2770.1,3.60995]
[1724615614176,2.375,2770.5,2770.1,3.60988]
[1724615614469,2.375,2770.5,2770.2,3.60981]
[1724615615342,2.375,2770.5,2770.3,3.60967]
[1724615617631,2.375,2770.5,2770.3,3.60964]
[1724615618657,2.356946,2770.5,2770.3,3.60964]
[1724615632676,2.356946,2770.5,2770.1,7.21974]
[1724615633066,2.356946,2770.5,2770.1,8.06823982]
[1724615633381,2.356946,2770.5,2770.2,3.60983]
[1724615655403,2.356946,2770.5,2770.3,3.6097]
[1724615663142,2.2932,2770.8,2770.4,1.26525823]
[1724615663299,2.2932,2770.8,2770.6,3.60924]
[1724615664542,2.2932,2770.8,2770.4,3.60946]
[1724615664767,2.2932,2770.8,2770.2,3.60973]
[1724615664768,2.3858,2770.7,2770.2,3.60973]
[1724615666141,2.3858,2770.7,2770.3,3.6097]
[1724615667108,2.3858,2770.7,2770.4,3.60955]
[1724615667302,2.3858,2770.7,2770.6,4.87457823]
[1724615667606,2.3858,2770.7,2770.6,0.84839982]
[1724615668240,2.3858,2770.7,2770.5,3.60937]
[1724615668447,2.3858,2770.7,2770.6,3.60932]
[1724615671966,2.3858,2770.7,2770.4,3.60947]
[1724615672734,2.3858,2770.7,2770.5,3.60945]
[1724615696764,2.3858,2770.7,2770.5,7.21883]
[1724615697059,2.3858,2770.7,2770.6,3.60932]
[1724615697262,2.3885,2771.1,2770.8,3.60902]
[1724615697488,2.3885,2771.1,2770.6,3.60921]
[1724615697696,2.3885,2771.1,2770.7,3.60917]
[1724615698503,6.72352282,2771.1,2770.4,1.26525823]
[1724615698706,2.3885,2771.0,2770.4,1.26525823]
[1724615700194,2.3885,2771.0,2770.6,3.60931]
[1724615702157,2.3885,2771.0,2770.6,3.60925]
[1724615711804,2.3885,2771.0,2770.6,7.2185]
[1724615712108,2.3885,2771.0,2770.6,3.60924]
[1724615720331,2.4573,2770.9,2770.4,3.6095]
[1724615720628,2.4573,2770.9,2770.5,3.60942]
[1724615726137,3.60929,2770.7,2770.1,3.60985]
[1724615726309,2.4135,2770.6,2770.2,3.60977]
[1724615726503,2.4135,2770.6,2770.3,3.60968]
[1724615728026,2.4135,2770.6,2770.4,3.6095]
[1724615728343,2.4135,2770.6,2770.5,3.60945]
[1724615730225,2.313,2771.1,2770.5,3.60945]
[1724615730426,2.313,2771.1,2770.6,4.87448823]
[1724615731435,2.313,2771.1,2770.7,3.60917]
[1724615731943,2.90516,2771.1,2770.7,3.60917]
[1724615732145,2.313,2771.0,2770.7,3.60917]
[1724615735955,2.313,2771.0,2770.5,7.2188]
[1724615736947,2.313,2771.0,2770.6,3.60932]
[1724615741850,2.313,2771.0,2770.4,4.87471823]
[1724615742211,2.2704,2770.9,2770.4,4.87471823]
[1724615743366,2.2704,2770.9,2770.5,3.6094]
[1724615746371,2.2932,2770.6,2770.2,3.60973]
[1724615746625,2.2932,2770.6,2770.2,7.21949]
[1724615747427,2.2932,2770.6,2770.3,3.6097]
[1724615750239,2.2932,2770.6,2770.4,3.60955]
[1724615751341,2.2932,2770.6,2770.4,7.21906]
[1724615751644,2.2932,2770.6,2770.4,3.60951]
[1724615752355,2.2932,2770.6,2770.4,3.6095]
[1724615752554,2.2932,2770.6,2770.4,7.219]
[1724615754239,2.2932,2770.6,2770.4,7.21901]
[1724615755052,2.2932,2770.6,2770.4,7.219]
[1724615755208,2.2932,2770.6,2770.4,3.6095]
[1724615755410,2.2932,2770.6,2770.4,7.21901]
[1724615756509,2.2932,2770.6,2770.5,3.60945]
[1724615764353,2.3341,2770.9,2770.7,3.60911]
[1724615764552,2.3341,2770.9,2770.7,7.21822]
[1724615765145,2.3341,2770.9,2770.7,3.60911]
[1724615773717,2.3341,2770.9,2770.5,8.48397823]
[1724615773888,2.3341,2770.9,2770.5,8.06711782]
[1724615774096,2.3341,2770.9,2770.5,7.21872]
[1724615775036,2.3341,2770.9,2770.5,3.60933]
[1724615775265,2.3341,2770.9,2770.5,7.2187]
[1724615775902,2.3341,2770.9,2770.6,3.60929]
[1724615776921,2.3341,2770.9,2770.5,8.48393823]
[1724615777800,2.3341,2770.9,2770.5,7.21868]
[1724615778591,2.3341,2770.9,2770.5,3.60933]
[1724615778828,2.3341,2770.9,2770.5,3.60824147]
[1724615779223,2.3341,2770.9,2770.5,7.21762147]
[1724615779404,2.3341,2770.9,2770.5,3.60824147]
[1724615781124,2.3341,2770.9,2770.5,7.21762147]
[1724615781312,2.3341,2770.9,2770.5,3.60824147]
[1724615786624,2.3341,2770.9,2770.3,3.60963]
[1724615786625,2.2857,2770.8,2770.3,3.60963]
[1724615787716,2.2857,2770.7,2770.3,7.21927]
[1724615788946,2.2857,2770.7,2770.3,3.60963]
[1724615793220,2.2857,2770.7,2770.3,7.21927]
[1724615794075,2.2857,2770.7,2770.3,3.60963]
[1724615794218,2.2868,2770.6,2770.3,3.60963]
[1724615794555,2.2868,2770.6,2770.3,7.21927]
[1724615795318,2.2868,2770.6,2770.4,3.60957]
[1724615796556,2.2868,2770.6,2770.4,3.60957]
[1724615797064,2.2868,2770.6,2770.3,7.21925]
[1724615797228,2.2868,2770.6,2770.3,3.60962]
[1724615798763,2.2868,2770.6,2770.4,3.60957]
[1724615802128,2.2868,2770.6,2770.5,3.60945]
[1724615803627,2.2868,2770.6,2770.3,7.21924]
[1724615804135,2.2868,2770.6,2770.4,3.60958]
[1724615804370,2.2868,2770.6,2770.3,7.21925]
[1724615804572,2.2868,2770.6,2770.3,3.60962]
[1724615805365,2.2868,2770.6,2770.3,7.21926]
[1724615805885,2.2868,2770.6,2770.3,7.21922]
[1724615807438,2.2868,2770.6,2770.4,3.60957]
[1724615807873,2.51548,2770.6,2770.3,3.6096]
[1724615808137,2.51548,2770.6,2770.3,7.21924]
[1724615808738,2.51548,2770.6,2770.4,3.60957]
[1724615809305,2.2868,2770.6,2770.4,3.60957]
[1724615813396,2.1868,2770.6,2770.4,3.60957]
[1724615818312,2.0868,2770.6,2770.4,3.60957]
[1724615821315,2.0868,2770.6,2770.5,3.60945]
[1724615821707,2.0868,2770.6,2770.3,3.6096]
[1724615821887,2.0868,2770.6,2770.5,3.60945]
[1724615822303,2.3019,2770.9,2770.5,3.60945]
[1724615822529,2.3019,2770.9,2770.5,7.21882]
[1724615823034,2.3019,2770.9,2770.6,3.6093]
[1724615832029,2.3019,2770.9,2770.5,3.60945]
[1724615848243,2.3019,2770.9,2770.5,4.49398082]
[1724615850835,2.3019,2770.9,2770.5,8.10343082]
[1724615851145,2.3019,2770.9,2770.5,4.49398082]
[1724615851711,2.3019,2770.9,2770.5,8.10336082]
[1724615855261,2.3019,2770.9,2770.6,3.60932]
[1724615889312,2.2664,2770.8,2770.2,0.54189115]
[1724615889482,2.2664,2770.8,2770.3,3.60963]
[1724615889661,2.2664,2770.8,2770.3,7.21926]
[1724615891603,2.2664,2770.8,2770.4,3.60956]
[1724615896628,2.2664,2770.8,2770.5,3.60945]
[1724615899753,2.2664,2770.8,2770.5,3.60936]
[1724615900032,2.2664,2770.8,2770.5,7.21873]
[1724615900197,2.2664,2770.8,2770.6,3.60924]
[1724615900398,2.2664,2770.8,2770.7,3.60919]
[1724615908460,2.2664,2770.8,2770.5,7.2187]
[1724615910213,2.2664,2770.8,2770.5,3.60934]
[1724615910428,2.2664,2770.8,2770.5,7.2187]
[1724615910835,2.2664,2770.8,2770.5,3.60934]
[1724615911054,2.2664,2770.8,2770.5,7.2187]
[1724615911221,2.2664,2770.8,2770.5,3.60934]
[1724615912929,2.2664,2770.8,2770.3,3.60963]
[1724615913656,2.2664,2770.8,2770.3,7.21926]
[1724615913807,2.2664,2770.8,2770.3,3.60963]
[1724615914005,2.2664,2770.8,2770.3,7.21926]
[1724615915505,2.2664,2770.8,2770.4,3.60958]
[1724615921242,2.2664,2770.8,2770.5,3.60944]
[1724615938393,2.2664,2770.8,2770.5,3.60937]
[1724615939499,2.2664,2770.8,2770.5,7.21875]
[1724615939650,2.2664,2770.8,2770.6,3.60929]
[1724615943398,2.2664,2770.8,2770.6,3.60924]
[1724615945449,2.2664,2770.8,2770.7,3.60919]
[1724615949498,2.2664,2770.8,2770.6,3.60924]
[1724615954895,2.2664,2770.8,2770.4,3.60951]
[1724615955611,2.2664,2770.8,2770.4,4.45796282]
[1724615955966,2.2664,2770.8,2770.4,8.06747282]
[1724615956367,2.2664,2770.8,2770.4,9.33273105]
[1724615957663,2.2664,2770.8,2770.5,3.60944]
[1724615968195,2.2664,2770.8,2770.6,3.60931]
[1724615968400,2.2664,2770.8,2770.7,3.60919]
[1724615968600,2.3098,2771.2,2770.7,4.33104]
[1724615968833,2.3098,2771.2,2770.7,3.60919]
[1724615975731,3.60855,2771.2,2770.7,3.60919]
[1724615975976,2.3486,2771.1,2770.7,3.60919]
[1724615980401,2.3486,2771.1,2770.4,3.60951]
[1724615980600,2.3486,2771.0,2770.4,3.60951]
[1724615980802,2.3486,2770.9,2770.5,3.60941]
[1724615983403,2.3486,2770.9,2770.5,7.21879]
[1724615984257,2.3486,2770.9,2770.5,3.60938]
[1724615984462,2.3486,2770.9,2770.5,7.21876]
[1724615985001,2.3486,2770.9,2770.5,3.60938]
[1724615985203,2.3486,2770.9,2770.5,7.21876]
[1724615987235,2.3486,2770.9,2770.5,7.21875]
[1724615987719,2.3486,2770.9,2770.5,3.60937]
[1724615988028,2.2791,2770.8,2770.5,3.60937]
[1724615991094,2.2791,2770.8,2770.5,7.21875]
[1724615993380,2.2791,2770.8,2770.6,3.60932]
[1724615994326,2.2791,2770.8,2770.5,3.60937]
[1724615995723,2.2791,2770.8,2770.5,7.21875]
[1724615997186,2.2791,2770.8,2770.5,3.60937]
[1724615997414,2.2791,2770.8,2770.5,7.21874]
[1724615997616,2.2791,2770.8,2770.5,3.60937]
[1724615997943,2.2791,2770.8,2770.5,7.21874]
[1724616000022,2.2791,2770.8,2770.5,3.60937]
[1724616000339,2.2791,2770.8,2770.5,7.21873]
[1724616000843,2.2791,2770.8,2770.6,3.60931]
[1724616001403,0.595715,2771.1,2770.6,3.60932]
[1724616001603,2.4376,2771.0,2770.8,3.60895]
[1724616002634,7.45,2771.2,2770.3,3.60966]
[1724616002635,7.45,2771.2,2770.9,1.26525823]
[1724616002938,7.45,2771.2,2771.1,4.87392823]
[1724616003303,7.45,2771.2,2771.1,8.48259823]
[1724616003703,7.45,2771.2,2771.1,7.21734]
[1724616004246,7.45,2771.2,2771.1,3.60867]
[1724616007379,2.4255,2771.4,2771.1,3.60867]
[1724616009087,2.4255,2771.4,2771.3,3.60841]
[1724616009261,2.4255,2771.4,2771.1,7.939019]
[1724616009426,2.4255,2771.4,2771.2,3.60852]
[1724616010171,2.4255,2771.4,2771.1,4.330349]
[1724616010944,2.4255,2771.4,2771.1,7.938949]
[1724616011270,2.4255,2771.4,2771.2,0.7938949]
[1724616014070,2.4255,2771.4,2771.2,4.4024149]
[1724616021574,2.4248,2771.8,2771.3,3.60841]
[1724616022673,3.60776,2771.8,2771.3,3.60841]
[1724616022875,2.4248,2771.7,2771.3,3.60841]
[1724616025548,2.4248,2771.7,2771.1,3.60856]
[1724616026477,2.4171,2771.6,2771.1,3.60856]
[1724616027161,2.4171,2771.6,2771.2,3.6085]
[1724616035685,2.4171,2771.6,2771.0,7.21751]
[1724616036683,2.4509,2771.5,2771.1,3.60866]
[1724616038773,2.4509,2771.5,2771.2,3.60854]
[1724616045814,2.4509,2771.5,2771.2,3.60846]
[1724616046709,2.4509,2771.5,2771.3,3.60841]
[1724616046916,2.4019,2771.8,2771.5,3.60805]
[1724616047277,2.4019,2771.8,2771.3,1.26525823]
[1724616047278,2.4019,2771.8,2771.6,3.60794]
[1724616048332,2.4019,2771.8,2771.7,3.60789]
[1724616053100,2.4019,2771.8,2771.4,3.6082]
[1724616053410,2.4019,2771.8,2771.2,8.48217823]
[1724616053619,2.4019,2771.8,2771.3,0.84821782]
[1724616053620,3.60778,2771.8,2771.3,0.84821782]
[1724616053810,2.4189,2771.7,2771.2,8.48217823]
[1724616053998,2.4189,2771.7,2771.3,3.60839]
[1724616055511,2.4189,2771.7,2771.4,3.60828]
[1724616057001,2.4189,2771.7,2771.4,7.21656]
[1724616057201,2.4189,2771.7,2771.4,3.60828]
[1724616057645,2.4189,2771.7,2771.4,7.21648]
[1724616059948,2.4189,2771.7,2771.5,3.60813]
[1724616073602,2.4189,2771.7,2771.1,3.60862]
[1724616073603,2.2877,2771.6,2771.1,3.60862]
[1724616073909,2.2877,2771.6,2771.2,3.60847]
[1724616077272,2.2877,2771.6,2770.8,0.33809031]
[1724616077273,5.89582,2771.6,2770.9,7.21769]
[1724616077456,2.2877,2771.4,2771.0,3.60878]
[1724616079721,2.2877,2771.4,2771.0,7.2175]
[1724616081529,2.2877,2771.4,2771.1,3.60866]
[1724616089025,2.2877,2771.4,2770.9,1.26525823]
[1724616089538,2.2877,2771.4,2771.0,3.6087]
[1724616091356,2.2877,2771.4,2771.0,7.21741]
[1724616092431,2.2877,2771.4,2771.0,3.6087]
[1724616093168,2.2877,2771.4,2771.1,3.60865]
[1724616096124,2.2877,2771.4,2771.1,2.11351905]
[1724616096327,7.45,2771.8,2771.1,1.26525823]
[1724616096328,2.4948,2771.5,2771.1,1.26525823]
[1724616097375,2.4948,2771.5,2771.3,4.87358823]
[1724616097976,2.4948,2771.5,2771.3,3.60833]
[1724616099676,2.4948,2771.5,2771.2,3.60842]
[1724616102654,2.4948,2771.5,2771.0,3.60875]
[1724616104665,2.4948,2771.5,2771.0,3.60872]
[1724616104895,2.4948,2771.5,2771.0,4.09611782]
[1724616105655,2.4948,2771.5,2771.0,7.70483782]
[1724616107152,2.4948,2771.5,2771.2,3.60845]
[1724616107349,2.4948,2771.5,2771.0,4.09612782]
[1724616107350,2.4948,2771.5,2771.1,1.26525823]
[1724616108256,2.4948,2771.5,2771.3,3.6084]
[1724616109806,2.4948,2771.5,2771.1,3.60855]
[1724616109987,2.4948,2771.5,2771.1,4.50554261]
[1724616110982,2.4948,2771.5,2771.0,4.09611782]
[1724616111775,2.2552,2771.4,2770.9,4.87418823]
[1724616111977,2.2552,2771.4,2770.9,3.60893]
[1724616112879,3.60817,2771.5,2770.5,4.36667789]
[1724616112880,2.2552,2771.2,2770.5,4.36667789]
[1724616113086,2.2552,2771.0,2770.5,3.60936]
[1724616113969,2.2552,2771.0,2770.6,3.60923]
[1724616114997,2.2552,2771.0,2770.7,3.6091]
[1724616115208,2.2552,2771.0,2770.7,4.09653582]
[1724616115365,2.2552,2771.0,2770.7,5.36179405]
[1724616116168,2.2552,2771.0,2770.8,3.60906]
[1724616120108,2.2552,2771.0,2770.5,3.60937]
[1724616120307,2.2552,2771.0,2770.5,7.21874]
[1724616120510,2.2552,2771.0,2770.6,3.6093]
[1724616121319,2.2552,2770.9,2770.6,3.6093]
[1724616122621,0.586399,2771.0,2770.3,3.60971]
[1724616122622,2.2552,2770.6,2770.3,3.60971]
[1724616126559,2.2552,2770.6,2770.1,7.21975]
[1724616126719,2.2552,2770.6,2770.1,3.60985]
[1724616127490,1.26525823,2770.5,2769.7,7.78647308]
[1724616127749,6.07526,2770.2,2769.7,4.17614308]
[1724616128037,6.07526,2770.2,2769.5,3.61068]
[1724616128038,2.4654,2770.1,2769.5,3.61068]
[1724616128238,2.4654,2770.1,2769.6,3.61054]
[1724616132387,2.4654,2770.1,2769.6,7.22108]
[1724616132822,2.4654,2770.1,2769.7,3.61048]
[1724616132988,2.4654,2770.1,2769.7,4.87573823]
[1724616133796,2.4654,2770.1,2769.8,3.61033]
[1724616133997,2.4654,2770.1,2769.9,1.26525823]
[1724616135929,2.4654,2770.1,2769.8,3.61033]
[1724616136950,2.3188,2770.5,2770.0,3.61001]
[1724616137327,2.3188,2770.5,2770.0,4.09753682]
[1724616138069,2.3188,2770.5,2770.1,4.87515823]
[1724616138433,2.3188,2770.5,2770.1,4.87511823]
[1724616140137,2.3188,2770.5,2770.2,3.6098]
[1724616140967,2.3188,2770.5,2770.3,3.60968]
[1724616141174,2.3188,2770.8,2770.5,3.60937]
[1724616142188,2.3188,2770.8,2770.6,3.60931]
[1724616143889,2.3188,2770.8,2770.5,3.60937]
[1724616147467,2.3188,2770.8,2770.3,3.60959]
[1724616148056,2.3188,2770.8,2770.4,8.48430823]
[1724616149677,2.3188,2770.8,2770.5,3.60945]
[1724616151097,2.3188,2770.8,2770.4,3.6095]
[1724616151298,2.3188,2770.8,2770.3,0.84846582]
[1724616151703,2.3188,2770.8,2770.6,3.60924]
[1724616157011,2.3254,2771.1,2770.8,3.60906]
[1724616157415,2.3254,2771.4,2771.1,3.60864]
[1724616158257,2.3254,2771.4,2771.0,1.26525823]
[1724616158258,2.3254,2771.4,2771.0,4.87394823]
[1724616158422,2.3254,2771.4,2771.2,3.60853]
[1724616158613,2.3254,2771.4,2771.0,4.87394823]
[1724616158614,2.3254,2771.4,2771.0,8.48262823]
[1724616159226,2.3254,2771.4,2771.2,1.26525823]
[1724616159561,2.3254,2771.4,2771.2,8.48216823]
[1724616159728,2.3254,2771.4,2771.2,4.87370823]
[1724616161061,2.3254,2771.4,2771.2,3.60845]
[1724616166518,3.60831,2771.4,2770.8,3.60896]
[1724616166732,2.4231,2771.3,2770.9,3.60893]
[1724616168022,2.4231,2771.3,2771.0,3.60872]
[1724616168227,2.4231,2771.3,2771.0,7.21743]
[1724616168627,2.4231,2771.3,2771.1,3.60866]
[1724616169024,2.4231,2771.3,2771.2,3.60854]
[1724616181599,2.4231,2771.3,2771.1,7.21725]
[1724616181796,2.4231,2771.3,2770.5,3.60944]
[1724616182013,2.4231,2771.3,2770.9,7.21773]
[1724616182326,2.4231,2771.3,2770.9,3.60885]
[1724616182488,2.4231,2771.3,2770.9,7.2177]
[1724616182689,2.4231,2771.3,2770.9,3.60885]
[1724616182906,2.4231,2771.3,2770.9,7.2177]
[1724616183850,2.4231,2771.3,2771.0,3.60879]
[1724616185418,2.4231,2771.3,2770.9,3.60885]
[1724616185621,2.4231,2771.3,2770.7,3.60917]
[1724616185622,3.026234,2771.3,2770.8,3.60902]
[1724616185941,3.026234,2771.3,2770.8,3.60898]
[1724616185942,2.3993,2771.2,2770.8,3.60898]
[1724616186264,2.3993,2771.1,2770.9,3.60893]
[1724616189545,2.3993,2771.1,2770.7,7.21818]
[1724616189746,2.3993,2771.1,2770.7,3.6091]
[1724616191999,2.3993,2771.1,2770.5,3.60938]
[1724616192000,2.2912,2771.0,2770.5,3.60938]
[1724616192204,2.2912,2770.8,2770.4,3.60953]
[1724616194810,2.2912,2770.8,2770.5,3.60945]
[1724616195359,2.2912,2770.8,2770.6,3.60931]
[1724616196602,2.2912,2770.8,2770.5,3.60937]
[1724616198260,2.2912,2770.8,2770.6,3.60929]
[1724616206172,2.2912,2770.8,2770.7,3.60919]
[1724616206335,2.2912,2770.8,2770.7,7.21838]
[1724616206660,2.2912,2770.8,2770.7,8.06638846]
[1724616208229,2.2912,2770.8,2770.7,7.21838]
[1724616212072,2.2912,2770.8,2770.7,3.60919]
[1724616216996,3.60842,2771.3,2770.6,4.87099463]
[1724616216997,2.2749,2771.2,2770.8,3.60901]
[1724616218455,2.2749,2771.2,2771.1,3.60867]
[1724616219383,2.2749,2771.2,2771.0,3.6087]
[1724616232225,9.7506,2771.4,2771.0,5.35744509]
[1724616232583,9.7506,2771.4,2771.0,8.96616509]
[1724616232783,9.7506,2771.4,2771.0,8.47912463]
[1724616232979,9.7506,2771.4,2771.0,4.87040463]
[1724616233415,2.3006,2771.4,2771.0,4.87040463]
[1724616234298,2.114386,2771.4,2771.0,4.87040463]
[1724616236635,2.114386,2771.4,2771.0,8.47913463]
[1724616236851,2.114386,2771.4,2771.0,8.47912463]
[1724616237003,2.114386,2771.4,2771.0,4.87040463]
[1724616237203,2.114386,2771.4,2771.0,8.47911463]
[1724616238200,2.114386,2771.4,2771.1,3.60862]
[1724616240013,2.114386,2771.4,2771.0,7.21742]
[1724616243048,2.114386,2771.4,2771.1,3.60866]
[1724616256474,2.114386,2771.4,2771.0,3.60877]
[1724616258140,2.114386,2771.4,2771.0,3.60873]
[1724616258844,2.114386,2771.4,2771.0,7.21744]
[1724616259540,2.114386,2771.4,2771.0,3.60871]
[1724616259883,2.2591,2771.3,2770.9,3.60893]
[1724616260038,2.2591,2771.3,2770.8,3.609]
[1724616261090,2.2591,2771.2,2770.8,3.609]
[1724616267562,2.2591,2771.2,2770.8,3.60898]
[1724616270599,2.2591,2771.2,2770.8,7.21795]
[1724616273573,2.2591,2771.2,2770.8,3.60897]
[1724616273979,2.2591,2771.2,2770.8,7.21795]
[1724616276616,2.2591,2771.2,2770.9,3.60893]
[1724616283930,2.2591,2771.2,2770.8,7.21794]
[1724616285892,2.2591,2771.2,2770.8,7.21795]
[1724616286094,2.2591,2771.2,2770.8,3.60897]
[1724616288706,2.2591,2771.2,2770.8,7.21796]
[1724616289700,2.2591,2771.2,2770.8,7.21796]
[1724616290122,2.2591,2771.2,2770.8,3.60897]
[1724616290330,2.2591,2771.2,2770.8,7.21795]
[1724616291548,2.2591,2771.2,2770.8,3.60897]
[1724616292099,2.2593,2771.0,2770.4,3.6095]
[1724616292443,2.2593,2770.9,2770.3,3.60962]
[1724616292646,2.2593,2770.9,2770.5,3.60944]
[1724616295152,2.2593,2770.9,2770.4,3.60957]
[1724616295331,1.26170463,2770.5,2770.1,3.60991]
[1724616295635,2.2593,2770.4,2770.2,3.60981]
[1724616298042,2.2593,2770.4,2770.1,3.60991]
[1724616298252,2.2593,2770.4,2770.1,7.21981]
[1724616298612,2.2593,2770.4,2770.1,3.6099]
[1724616299548,2.2593,2770.4,2770.1,4.87160463]
[1724616299905,2.2593,2770.4,2770.2,3.60984]
[1724616301907,7.45,2770.8,2770.2,4.45800446]
[1724616302145,2.4731,2770.7,2770.3,1.26170463]
[1724616302444,2.4731,2770.7,2770.4,3.60958]
[1724616303408,2.4731,2770.7,2770.4,3.60949]
[1724616306219,2.4731,2770.7,2770.5,3.6094]
[1724616311862,2.4731,2770.7,2770.3,3.60961]
[1724616312073,2.4731,2770.7,2770.3,4.54253391]
[1724616317431,2.4731,2770.7,2770.2,3.60976]
[1724616318369,2.4148,2770.6,2770.2,3.60976]
[1724616323252,2.4148,2770.6,2770.2,7.21952]
[1724616325977,2.4148,2770.6,2770.3,3.60969]
[1724616328275,2.4148,2770.6,2770.4,3.60958]
[1724616328663,2.4148,2770.6,2770.5,3.60945]
[1724616331870,2.4821,2771.0,2770.5,3.60945]
[1724616332069,3.60883,2771.0,2770.4,7.21909]
[1724616332247,2.4821,2770.9,2770.4,7.21909]
[1724616333171,2.4821,2770.9,2770.4,3.60951]
[1724616333381,2.4821,2770.9,2770.4,3.6095]
[1724616339701,2.4821,2770.9,2770.4,7.219]
[1724616340004,2.4821,2770.9,2770.5,3.60944]
[1724616365959,2.4821,2770.9,2770.3,3.60962]
[1724616366918,2.4274,2770.8,2770.4,3.60957]
[1724616372532,3.031034,2770.8,2770.4,3.60957]
[1724616372844,0.603634,2770.8,2770.2,3.60975]
[1724616373030,0.603634,2770.8,2770.1,3.6099]
[1724616373031,2.2676,2770.7,2770.1,3.6099]
[1724616373237,3.6093,2770.7,2770.1,3.6099]
[1724616373572,2.2676,2770.6,2770.1,3.6099]
[1724616374033,2.2676,2770.6,2770.1,7.21979]
[1724616374236,2.2676,2770.6,2770.1,3.60989]
[1724616374636,2.2676,2770.6,2770.1,7.21979]
[1724616374845,2.2676,2770.6,2770.2,3.60981]
[1724616377167,2.2676,2770.6,2770.3,3.6097]
[1724616377364,2.2676,2770.6,2770.3,3.60963]
[1724616378555,2.2676,2770.6,2770.3,7.21926]
[1724616378958,2.2676,2770.6,2770.3,3.60963]
[1724616380147,2.2676,2770.6,2770.4,3.60956]